Cogmind - Beta 17 @@@ ROGUE MODE // 2026.07.04 @ 08:50:39 Player: ToBeDefined Result: Destroyed by S-10 Pest with Light Assault Rifle Performance ------------- Evolutions (0) 0 Regions Visited (2) 400 Robots Destroyed (43) 215 Value Destroyed (811) 811 Prototype IDs (0) 0 Alien Tech Used (0) 0 Bonus (0) 0 TOTAL SCORE: 1426 Bonus ------- None Cogmind --------- Core Integrity 0/250 Matter 265/300 Energy 205/250 System Corruption 4% Temperature Cool (22) Movement Treading (240) Ox1 Location -10/Subcaves Parts ------- > --- POWER (1) -------- Ion Engine > --- PROPULSION (2) --- Light Treads Light Treads > --- UTILITY (2) ------ High-capacity Storage Unit Makeshift Light Armor Plating > --- WEAPON (2) ------- Particle Gun Barrage Gun > --- INVENTORY (20) --- Ion Engine Ion Engine Light Ion Engine Light Nuclear Core Light Treads Aluminum Leg Aluminum Leg Heat Sink Heat Sink Huge Storage Unit Utility Shielding EM Pulse Gun Small Laser Small Laser Small Laser Small Laser Particle Gun Mini Grenade Launcher Mace Peak State ------------ > --- POWER ------------ Ion Engine > --- PROPULSION ------- Light Treads Light Treads > --- UTILITY ---------- High-capacity Storage Unit Makeshift Light Armor Plating > --- WEAPON ----------- Particle Gun Barrage Gun > --- INVENTORY -------- Ion Engine Ion Engine Light Ion Engine Light Nuclear Core Light Treads Light Treads Aluminum Leg Aluminum Leg Heat Sink Heat Sink Huge Storage Unit Utility Shielding EM Pulse Gun Small Laser Small Laser Small Laser Small Laser Particle Gun Mini Grenade Launcher Mace [Rating: 15] Favorites ----------- Power Ion Engine Engine Ion Engine Propulsion Light Treads Treads Light Treads Leg Aluminum Leg Utility High-capacity Storage Unit Device Heat Sink Storage High-capacity Storage Unit Protection Makeshift Light Armor Plating Weapon Particle Gun Energy Gun Particle Gun Ballistic Gun Barrage Gun Launcher Mini Grenade Launcher Special Weapon Mining Laser Build | -11 -10 -10 ------- Run | Yrd Mat Sub Slots Evolved . | . . . Power . | . . . Propulsion . | . . . Utility . | . . . Weapon . | . . . Parts Attached 26 | 8 15 3 Power 2 | 1 1 . Engine 2 | 1 1 . Core . | . . . Reactor . | . . . Propulsion 7 | 2 4 1 Treads 5 | 2 2 1 Leg 2 | . 2 . Wheel . | . . . Hover . | . . . Flight . | . . . Utility 7 | 2 4 1 Device 2 | 1 1 . Storage 3 | 1 2 . Processor . | . . . Hackware . | . . . Protection 2 | . 1 1 Artifact . | . . . Weapon 10 | 3 6 1 Energy Gun 5 | 3 2 . Energy Cannon . | . . . Ballistic Gun 2 | . 1 1 Ballistic Cannon . | . . . Launcher 2 | . 2 . Special Weapon 1 | . 1 . Impact Weapon . | . . . Slashing Weapon . | . . . Piercing Weapon . | . . . Special Melee Weapon . | . . . Unidentified Prototypes . | . . . Corrupted Parts 1 | . 1 . System Corruption 4 | . 4 . Parts Lost 7 | . 6 1 Power 1 | . 1 . Propulsion 2 | . 1 1 Utility 1 | . 1 . Weapon 3 | . 3 . Highest Loss Streak 3 | . 3 1 To Critical Strikes . | . . . Average Backups 16 | 6 15 19 Power 4 | 2 4 4 Propulsion 3 | 3 3 3 Utility 2 | . 2 3 Weapon 6 | 1 4 8 Tool/Special . | . . . Unused Backups 24 | 1 9 14 Power 6 | 1 . 5 Propulsion 6 | . 5 1 Utility 6 | . 3 3 Weapon 6 | . 1 5 Tool/Special . | . . . Average Slot Usage (%) 99 | . 99 100 Engine 14 | . 14 14 Treads 26 | . 24 28 Leg 1 | . 3 . Device 10 | . 9 11 Storage 15 | . 16 14 Protection 2 | . 1 2 Energy Gun 20 | . 25 14 Ballistic Gun 6 | . . 13 Peak Build Rating 15 | 9 11 15 Average Rating 10 | 7 9 12 On Entrance 6 | . 9 11 Avg Prop Armor Cover (%) 7 | . 7 . Naked Turns . | . . . Heaviest Build 60 | 14 60 55 Greatest Support 40 | 40 40 40 Greatest Overweight (x) 4 | 4 2 1 Average Overweight (x) . | . . 1 Largest Inventory Capacity 20 | 8 20 20 Average Capacity 17 | 7 16 20 Most Carried 20 | 8 20 20 Average Carried 16 | 6 15 19 Final Capacity 20 | 8 20 20 Final Carried 20 | 8 20 19 Class Distribution -------------------- 70% | Mutant 29% | Scavenger-Mutant Dominant Class ---------------- Scavenger-Mutant | -10/Materials Mutant | -10/Subcaves Resources | -11 -10 -10 ----------- Run | Yrd Mat Sub Matter Collected 821 | 290 322 209 Remotely . | . . . Salvage Created 1271 | 195 865 211 Parts 88 | 18 61 9 Haulers Intercepted 2 | . 2 . Recyclers Shooed 2 | 1 1 . Parts Field Recycled . | . . . Retrieved Matter . | . . . Parts Self-Destructed 15 | . . 15 Prevented . | . . . Parts Restored . | . . . Kills | -11 -10 -10 ------- Run | Yrd Mat Sub Combat Hostiles Destroyed 27 | . 19 8 Guns 26 | . 18 8 Cannons 1 | . 1 . Classes Destroyed 10 | 2 6 2 Worker 3 | . 3 . Builder 2 | . 2 . Tunneler 7 | 5 2 . Hauler 2 | . 2 . Recycler 1 | 1 . . Watcher 1 | . 1 . Swarmer 11 | . 6 5 Grunt 13 | . 13 . Sentry 1 | . . 1 Subdweller 2 | . . 2 Best Kill Streak 4 | 3 4 4 Combat Bots Only 4 | . 3 4 Max Kills in Single Turn 2 | 1 1 2 Gunslinging 1 | . . 1 Exploded . | . . . Melee . | . . . Uniques/NPCs Destroyed . | . . . Combat | -11 -10 -10 -------- Run | Yrd Mat Sub Hostile Shots Fired 235 | . 116 119 Missed 80 | . 32 48 Hits 155 | . 84 71 Projectile 155 | . 84 71 Critical Strikes 1 | . 1 . Damage Taken 1592 | . 968 624 Core 251 | . 181 70 Absorbed by Shields . | . . . Redirected to Shielding 50 | . 50 . Regen/Repaired (Parts) 326 | . 326 . Core Remaining (%) 100 | 100 . . Volleys Fired 144 | 11 103 30 Largest 2 | 2 2 2 Hottest 140 | 90 140 93 Shots Fired 252 | 22 175 55 Gun 243 | 22 166 55 Cannon . | . . . Launcher 3 | . 3 . Special 6 | . 6 . Kinetic 32 | . 3 29 Thermal 172 | 21 125 26 Explosive 3 | . 3 . Electromagnetic 45 | 1 44 . Robot Hit Streak 9 | 7 9 6 Robot Miss Streak 7 | 2 7 4 Penetration Max . | . . . Secondary Targets 2 | . 1 1 Max Gunslinging Chain 1 | . 1 1 Shots Hit Robots 144 | 12 97 35 Core Hits 62 | 7 44 11 Critical Kills . | . . . Critical Parts Destroyed . | . . . Critical Strikes 5 | . 4 1 Burn 5 | . 4 1 Melee Attacks . | . . . Impact . | . . . Slashing . | . . . Piercing . | . . . Sneak Attacks . | . . . Combat Hostiles . | . . . Follow-up Attacks . | . . . Damage Inflicted 2157 | 147 1419 591 Guns 1981 | 147 1243 591 Cannons . | . . . Explosions 101 | . 101 . Melee . | . . . Ramming 3 | . 3 . Kinetic 378 | . . 378 Thermal 1413 | 134 1066 213 Explosive 11 | . 11 . Electromagnetic 352 | 13 339 . Impact . | . . . Slashing . | . . . Piercing . | . . . Highest Corruption 4 | . 4 4 Average Corruption 4 | . 4 4 Corruption Purged . | . . . Corruption Blocked . | . . . Effects 57 | . 23 34 Message Errors 17 | . 4 13 Matter Fused 17 | . 10 7 Heat Flow Errors 3 | . 3 . Energy Discharges 9 | . 4 5 Data Loss (minor) 3 | . 1 2 Data Loss (major) 3 | . . 3 Misfires 1 | . . 1 Alerts 3 | . 1 2 Weapon Failures 1 | . . 1 Overload Shots . | . . . Overflow Damage . | . . . Projectiles . | . . . Explosions . | . . . Melee . | . . . Knockbacks . | . . . Impact . | . . . Kinetic . | . . . Secondary . | . . . Self-Inflicted Damage 36 | . 36 . Shots 3 | . 3 . Rammed 1 | . 1 . Targets Rammed 1 | . 1 . Kicked . | . . . Crushed . | . . . Highest Temperature 353 | 120 353 44 Average Temperature 86 | 39 99 17 Received Heat Transfer 630 | . 450 180 Effects 5 | . 5 . Energy Bleed 1 | . 1 . Interference 3 | . 3 . Matter Decay 1 | . 1 . Siege Activations . | . . . Martial Activations . | . . . Shielding Activations . | . . . Robots Disrupted . | . . . Combat Hostiles . | . . . Robots Corrupted . | . . . Combat Hostiles . | . . . Parts Fried 1 | . 1 . Impact Corruptions . | . . . Robots Melted . | . . . Combat Hostiles . | . . . Parts Melted 5 | . 5 . Heat Transferred 3861 | 359 2910 592 Parts Sabotaged . | . . . Parts Stolen . | . . . Parts Stripped . | . . . Power Chain Reactions 2 | . 2 . Alert | -11 -10 -10 ------- Run | Yrd Mat Sub Maximum Alert Level . | . . . Low Security (%) 100 | 100 100 . Level 1 . | . . . Level 2 . | . . . Level 3 . | . . . Level 4 . | . . . Level 5 . | . . . High Security . | . . . Max Security . | . . . Peak Influence 168 | 5 168 . Initial . | . . . Average 72 | 1 79 . Influence Increases 863 | 30 653 180 Destroy 0b10 Robot/C 500 | . 380 120 Destroy 0b10 Robot/NC 80 | 30 50 . Destroy Leader 86 | . 86 . Successful Hack 19 | . 19 . Disable Machine 30 | . 30 . Destroy Structure 28 | . 28 . Lose Combat Pursuer 120 | . 60 60 Influence Decreases 787 | 30 589 168 Entered New Map 32 | . . 32 Time Decay 685 | 30 529 126 Lost Part 70 | . 60 10 Squads Dispatched 5 | . 5 . Investigation 4 | . 4 . Extermination . | . . . Reinforcement 1 | . 1 . Assault . | . . . Garrison . | . . . Intercept . | . . . Searches Triggered . | . . . Construction Impeded . | . . . Haulers Reinforced . | . . . Active Scanning Responses . | . . . Cargo Convoy Interrupts . | . . . Stealth | -11 -10 -10 --------- Run | Yrd Mat Sub Distress Signals 4 | . 4 . Communications Jammed . | . . . Distress Signals . | . . . Times Spotted 50 | . 36 14 Peak Tracking Total 6 | . 5 6 Tactical Retreats 5 | . 3 2 Traps | -11 -10 -10 ------- Run | Yrd Mat Sub Traps Triggered 1 | . 1 . Indirectly . | . . . Trap Hack Attempts . | . . . Triggered . | . . . Disarmed . | . . . Reprogrammed . | . . . Reused . | . . . Traps Extracted . | . . . Installed . | . . . Triggered . | . . . Machines | -11 -10 -10 ---------- Run | Yrd Mat Sub Machines Disabled 2 | . 2 . Max in Single Turn 1 | . 1 . Machines Repaired . | . . . Machines Dismantled . | . . . Machines Sabotaged . | . . . Overloaded Fab Kills . | . . . Hacking | -11 -10 -10 --------- Run | Yrd Mat Sub Machines Accessed 9 | . 8 1 Terminals 5 | . 5 . Fabricators . | . . . Repair Stations 1 | . 1 . Recycling Units 2 | . 2 . Scanalyzers . | . . . Garrison Access . | . . . Total Hacks 30 | . 25 5 Successful 20 | . 15 5 Failed 10 | . 10 . Catastrophic 3 | . 3 . Database Lockouts . | . . . Manual 11 | . 11 . Terminals 10 | . 10 . Fabricators . | . . . Repair Stations 10 | . 10 . Recycling Units 5 | . 5 . Scanalyzers . | . . . Garrison Access . | . . . Terminal Hacks 9 | . 4 5 Record 5 | . . 5 Part Schematic 2 | . 2 . Alert Level 2 | . 2 . Fabricator Hacks . | . . . Repair Station Hacks 10 | . 10 . Scan Component 5 | . 5 . Repair 5 | . 5 . Recycling Unit Hacks 1 | . 1 . Report Inventory 1 | . 1 . Scanalyzer . | . . . Garrison Access Hacks . | . . . Unauthorized Hacks . | . . . Terminals . | . . . Fabricators . | . . . Repair Stations . | . . . Recycling Units . | . . . Scanalyzers . | . . . Garrison Access . | . . . Data Cores Recovered . | . . . Used . | . . . Hacking Detections 8 | . 8 . Full Trace Events 1 | . 1 . Feedback Events . | . . . Feedback Blocked . | . . . Robot Schematics Acquired . | . . . Robots Built . | . . . Authchips . | . . . Time . | . . . Total Robot Build Rating . | . . . Part Schematics Acquired 2 | . 2 . Parts Built . | . . . Authchips . | . . . Time . | . . . Total Part Build Rating . | . . . Part Studies Acquired . | . . . Parts Repaired 5 | . 5 . Time 142 | . 142 . Parts Recycled . | . . . Recycled Matter . | . . . Retrieved Matter . | . . . Retrieved Components . | . . . Parts Scanalyzed . | . . . Part Schematics Acquired . | . . . Parts Damaged . | . . . Bothacking | -11 -10 -10 ------------ Run | Yrd Mat Sub Used RIF Installer . | . . . Robots Hacked . | . . . Non-combat . | . . . Combat . | . . . Robot Hacks Applied . | . . . Relay Couplers Released . | . . . Fabnet Peak Effective % . | . . . Robots Rewired . | . . . Allies Hacked . | . . . Hacks Repelled . | . . . Allies | -11 -10 -10 -------- Run | Yrd Mat Sub Total Allies . | . . . Largest Group . | . . . Highest-Rated Group . | . . . Highest-Rated Ally . | . . . Total Orders . | . . . Ally Attacks . | . . . Total Damage . | . . . Kills . | . . . Allies Corrupted . | . . . Allies Melted . | . . . Intel | -11 -10 -10 ------- Run | Yrd Mat Sub Active Infowar (turns) 394 | 160 234 . Terrain 394 | 160 234 . Robot Analysis Total . | . . . Derelict Logs Recovered . | . . . Drone Launches . | . . . Drone Recoveries . | . . . Exploration | -11 -10 -10 ------------- Run | Yrd Mat Sub Turns Passed 4112 | 221 2101 1790 Spaces Moved 1522 | 107 708 707 Core 15 | 15 . . Treads 1445 | 92 646 707 Legs 62 | . 62 . Wheels . | . . . Hover . | . . . Flight . | . . . Fastest Speed 50 | 50 160 240 Average Speed 223 | 155 216 240 Slowest Speed 320 | 250 320 240 Overloaded Moves . | . . . Propulsion Burnouts . | . . . Robots Hopped . | . . . Potential Cave-ins . | . . . Cave-ins Triggered . | . . . Exploration Rate (%) 48 | 5 99 41 Regions Visited 2 Branch Regions 1 Pre-discovered Areas . | . . . Known Exits Taken . | . . . Unknown Exits Taken 2 | 1 1 . Scrap Searched . | . . . Spaces Dug 26 | . 26 . Terrain Destroyed 35 | . 35 . Melee . | . . . Projectile 1 | . 1 . AOE 34 | . 34 . Terrain Rammed . | . . . Walls Destroyed . | . . . Machines Disabled . | . . . Actions | -11 -10 -10 --------- Run | Yrd Mat Sub Total 1972 | 136 1087 749 Wait 209 | . 204 5 Move 1520 | 106 707 707 Hop . | . . . Pick Up 44 | 9 33 2 Fast Attach 9 | 7 2 . Attach 8 | . 7 1 Detach . | . . . Swap 19 | 2 15 2 Drop 18 | 1 15 2 Fire 144 | 11 103 30 Melee . | . . . Ram . | . . . Kick . | . . . Crush 1 | . 1 . Escape Stasis . | . . . Rewire . | . . . Trap . | . . . Miscellaneous . | . . . Route ------- -11/Scrapyard -10/Materials (discovered 5 exits: [*Mat x3] / [*Min] / *Sub) -10/Subcaves (discovered 3 exits: [*Mat x2] / [*Rec]) History --------- Turn | Location | Event 20 | -11/Scrapyard | Discovered new exit (range 16) 222 | -11/Scrapyard | Entered Materials 301 | -10/Materials | Build established: Mutant 426 | -10/Materials | Discovered new exit (range 16) 768 | -10/Materials | Core integrity fell below 50% 786 | -10/Materials | Lost 3 parts (1u2w) 1177 | -10/Materials | Discovered new exit (range 8) 1557 | -10/Materials | Discovered new exit (range 13) 1561 | -10/Materials | Build established: Scavenger-Mutant 1968 | -10/Materials | Discovered new exit (range 16) 2148 | -10/Materials | Repaired Lgt. Treads 2175 | -10/Materials | Repaired Lgt. Treads 2208 | -10/Materials | Repaired Particle Gun 2242 | -10/Materials | Repaired Particle Gun 2269 | -10/Materials | Repaired EM Pulse Gun 2311 | -10/Materials | Discovered new exit (range 6) 2323 | -10/Materials | Entered Subcaves 2324 | -10/Subcaves | Approached by a straggling Scientist 2391 | -10/Subcaves | Shifting Twisted Machinery released Barrage Gun 2398 | -10/Subcaves | Discovered new exit (range 9) 2701 | -10/Subcaves | Build established: Mutant 2996 | -10/Subcaves | Visited Clippyterm 3003 | -10/Subcaves | Learned Factory stockpile data 3003 | -10/Subcaves | Learned Research security intel 3252 | -10/Subcaves | Discovered new exit (range 15) 3658 | -10/Subcaves | Shifting Twisted Machinery released Sub. Laser 3816 | -10/Subcaves | Core integrity fell below 20% 3823 | -10/Subcaves | Discovered new exit (range 16) 4113 | -10/Subcaves | Destroyed by S-10 Pest with Light Assault Rifle Last Messages --------------- 7L-E4J(c): "I think it's somewhere north of here" 03963_ Lgt. Treads destroyed. 03969_ Subatomizers dissect the Disposable Heat Sink. 03977_ System corrupted: Component data lost. 03977_ L8-G0Y(R) suffers critical hit (Burn). 03980_ Subatomizers dissect the Disposable Heat Sink. 03983_ L8-G0Y(R) destroyed. 03996_ Acquired 45 matter. 04000_ UIBE5QEEV VL0H 4MBVPDYX#J79E OK9 M A,IB 7L-E4J(c): "I think it's somewhere north of here" 04060_ Acquired 7 matter. 04070_ Acquired 8 matter. 04081_ System corrupted: Energy discharge (-65). 7L-E4J(c): "I think it's somewhere northwest of here" 04108_ System corrupted: Energy discharge (-80). Map ----- +----------------------------------------------------+ | ?# ##?????????????????????????????????????? | | ?# ##????????????????????????????????????? | | ?# ## ####?????????????????????????????????? | | # ##### #??????????###????????????????????? | | ### ## #??????????# ##???????????????????? | | #?# ## #???????##### ##??????????????????? | | #??# ##??????## ## #??????????????????? | | ??## #####???????# #??????????????????? | | ### ## ###?????????#### #??###?????????????? | | #?# ##???????????# ###?## ?????????????? | | ### #??????###### #???# #?????? #????? | | #??????# ] #???# ????# #????? | | % ######?## ##???# #???# #????? | | ##?# #??### ##?# #????? | | % #?## #??# ## #????? | | ## #?## #??# #??????? | | #### ### ##?## ##??????? | | ## #?# # #### #???????? | | ## %#?#### #???????? | | ## #???# # ## #???????? | | ### #??## ### ##### ### #???????? | | ### #??####?# ######## ##??# #???????? | | ### #??????#### #### ##???##???????? | | #??# ##???????## & #????????????? | | ##??? ##???###### /% s % #????????????? | | #???###????# # @# % ###??????????? | | #####??????# %%### *% #??????????? | | #??????# #?# s%&& ##??????????? | | ##?????# #### %& & ##???????????? | | # # #?????# # # ### s ##???????????? | | ### ##?????###### %% #???????????? | | ### ""#????????# % ## #????##?????? | | # ""##??????# % #### ## ###?## #?????? | | " #####??### ##?# ### ##????? | | " " ###??## ###??## ## #????? | | """" ##### ##????# ## ##????? | | # ## """ ########### ## ##????? | | ####? #"# %# ## ### #????? | | ????? ## " % ### ####????? | | ????? ##?? ## "" < ## ###?????? | | ????? #???? ### ## # ###???? | | ????? ?????#?# ###### # #### #???? | | ????? ???????# ### #??# % #???? | | ????? ??????## ## ##??# #####???? | | ?????? ?????# # % ##???# ##???????? | | ?????? ???# #### ##????# #????????? | | ??????# % #??###?????#######????????? | | ??????## ????????????????????????? | | ???????## ## #######???????????????????????? | | ????????####?#######?????????????????????????????? | +----------------------------------------------------+ Best States ------------- Heat Dissipation 35 Energy Generation 10 Energy Capacity 250 Matter Stores 300 Matter Capacity 300 Sight Range 16 Terrain Scan Range 16 Terrain Scan Density 10 Armor Coverage 100 Propulsion Shielding 33 Evasion (%) 40 Recoil Reduction 2 Item Schematics ----------------- Cargo Storage Unit | -10/Materials | Hacked Lgt. Treads | -10/Materials | Hacked Robot Schematics ------------------ None Fabricated ------------ Nothing Repaired ---------- Lgt. Treads | 7% | -10/Materials Lgt. Treads | 35% | -10/Materials Particle Gun | 40% | -10/Materials Particle Gun | 52% | -10/Materials EM Pulse Gun | 44% | -10/Materials Studied --------- None Alien Tech Used ----------------- None Achievements -------------- None Challenges ------------ None Game ------ Seed AngularSpectralInjector Manual? 0 Play Time 00:31:35 Cumulative 44.1 hours Start 2026.07.03 @ 11:47:20 End 2026.07.04 @ 08:50:39 Sessions 2 Manual Loads 0 Difficulty Rogue Special Mode None Game No. 44 Rogue 44 Adventurer 0 Explorer 0 Win Type - Total 0 Types 0/0/0/0/0/0/0/0/0/0 Lore% 22 Gallery% 22 Achievement% 18 Wizard Run 0 Options --------- Layout 1 ASCII 0 Keyboard 0 Movement Mouse Keybinds 0 Fullscreen 1 Font 24/Smallcaps Map View 50x35 Zoom Use 0% Tactical HUD 1 Map Filters NONE Filters NONE Steam 1 RUN: 5e9bb99a-233a-4f51-8383-bbddf4d269bb